[Event "European Women-ch 2023"]
[Site "Petrovac"]
[Date "2023.03.25"]
[Round "7.11"]
[White "Kubicka, Anna"]
[Black "Klek, Hanna Marie"]
[Result "1-0"]
[Annotator "TA"]
[ECO "B30"]
[WhiteElo "2211"]
[BlackElo "2314"]
[PlyCount "97"]
[EventDate "2023.03.15"]
[EventType "swiss"]
[EventCountry "MNE"]
[SourceTitle "playchess.com"]
[Source "ChessBase"]
[SourceQuality "1"]
[TimeControl "40/5400+30:1800+30"]

{[%evp 9,97,12,18,21,16,4,31,34,34,23,46,49,46,21,24,16,21,0,0,-14,-25,-15,0,0,0,0,0,0,0,-17,-22,-16,0,0,0,0,12,12,9,32,39,37,117,125,114,114,144,143,104,89,177,107,99,82,126,115,110,113,118,112,126,133,135,123,150,170,225,221,235,231,236,220,515,511,505,477,491,479,508,522,612,538,1154,1130,1075,1075,1411,1361,29988,29989]} 1. e4 {[%emt 0:00:05]} c5 {[%emt 0:00:05]} 2. Nf3 {[%emt 0:00:07]} Nc6 {[%emt 0:00:05]} 3. Nc3 {[%emt 0:01:14]} e5 {[%emt 0:00:19]} 4. Bc4 {[%emt 0:03:59]} Be7 {[%emt 0:00:49]} 5. Nd5 {[%emt 0:03:57]} d6 {[%emt 0:01:20]} 6. c3 {[%emt 0:02:02] B30: Sicilian: 2...Nc6 3 Bb5, lines without ...g6.} Nf6 {[%emt 0:01:24]} 7. Qe2 {[%emt 0:05:31] [#]} Nd7 $146 {[%emt 0:03:55]} ({Predecessor:} 7... O-O 8. O-O Nxd5 9. Bxd5 Bf6 10. d3 Ne7 11. Bc4 Bd7 12. a4 Bc6 13. Rd1 Rc8 {½-½ Ilyasov,A (2330)-Razumikhin,A (2329) RUS-ch2 Vet sf02 email 2015}) 8. O-O {[%emt 0:03:41] White is slightly better.} Nb6 {[%emt 0:05:59]} 9. Bb3 {[%emt 0:13:44]} Bg4 {[%emt 0:09:41]} 10. h3 {[%emt 0:01:58]} Bh5 {[%emt 0:00:28]} 11. Nxb6 {[%emt 0:06:59]} axb6 {[%emt 0:01:41]} 12. d3 {[%emt 0:03:29]} h6 {[%emt 0:11:40]} 13. Qe3 {[%emt 0:03:58]} Qd7 {[%emt 0:07:00]} 14. d4 {[%emt 0:05:22]} exd4 {[%emt 0:09:39]} 15. cxd4 {[%emt 0:00:19]} Bxf3 {[%emt 0:02:31]} 16. Qxf3 {[%emt 0:00:08]} Bf6 {[%emt 0:00:26]} 17. dxc5 {[%emt 0:02:56]} bxc5 {[%emt 0:01:00]} 18. Bd5 {[%emt 0:11:49]} O-O {[%emt 0:03:03]} 19. Qe2 {[%emt 0:08:08]} Nb4 {[%emt 0:03:54]} 20. Bc4 {[%emt 0:00:13]} Qe7 {[%emt 0:12:54]} 21. a3 {[%emt 0:02:39]} Rfe8 {[%emt 0:01:22]} 22. Be3 {[%emt 0:00:28]} Nc6 {[%emt 0:01:42]} 23. Bd5 {[%emt 0:00:14]} Ra6 {[%emt 0:03:41]} 24. Rab1 {[%emt 0:01:36]} Qd7 {[%emt 0:03:51]} 25. Qb5 {[%emt 0:02:24]} Qc7 {[%emt 0:03:29] [#]} (25... Rd8 $14) 26. b4 $1 $16 {[%emt 0:01:23]} cxb4 {[%emt 0:02:20]} 27. axb4 {[%emt 0:00:01]} Rea8 {[%emt 0:01:19]} 28. Rfc1 {[%emt 0:06:41] Qf1 would be deadly. White is much more active.} Qe7 {[%emt 0:01:55]} 29. Qf1 {[%emt 0:04:21] Threatens to win with b5.} Ra4 {[%emt 0:02:25]} (29... Nd4 $16) 30. b5 {[%emt 0:01:13]} (30. Rxc6 $18 bxc6 31. Bxc6) 30... Nd8 {[%emt 0:00:53]} 31. Rc4 {[%emt 0:00:47] Repels Bd4} Ra3 {[%emt 0:01:00]} 32. Rbc1 {[%emt 0:00:39]} Bb2 {[%emt 0:00:51]} 33. Rd1 $36 {[%emt 0:01:56][%mdl 2048] Black is under strong pressure.} Ne6 {[%emt 0:00:32]} 34. Qe2 {[%emt 0:00:32]} Be5 {[%emt 0:00:47]} 35. g3 {[%emt 0:00:16] Against Bf4} Kh7 {[%emt 0:00:55]} 36. Kg2 {[%emt 0:00:36]} g6 {[%emt 0:00:55]} 37. Rdc1 {[%emt 0:00:21][%cal Bd1c1,Bc1c2,Bc2a2,Ba2a8,Ba8b8,Bb8b7][%mdl 32]} Rb3 {[%emt 0:00:52] [#]} (37... h5 {is a better defense.} 38. b6 Nc5) 38. b6 $1 $18 {[%emt 0:00:53][%cal Oc4c7] Strongly threatening Rc7!} ({Don't take} 38. Rc8 $6 Rb2 39. R8c2 Rxc2 40. Qxc2 Kg7) 38... Rb2 {[%emt 0:00:23]} 39. R1c2 {[%emt 0:00:14]} ({Resist} 39. R4c2 $6 Rxc2 40. Qxc2 Bf6) 39... Raa2 {[%emt 0:00:35]} 40. Rc8 {[%emt 0:00:00] Wards off Bg7} Qd7 $2 {[%emt 0:00:00]} (40... Rxc2 {was necessary.} 41. Rxc2 Ra8) 41. Bxa2 {[%emt 0:01:59]} Rxa2 {[%emt 0:02:11]} 42. Rxa2 {[%emt 0:04:28]} Qxc8 {[%emt 0:00:05]} 43. Qc2 {[%emt 0:00:24]} Qd7 {[%emt 0:02:47]} 44. Qc4 {[%emt 0:03:21]} g5 {[%emt 0:00:54]} 45. Ra8 {[%emt 0:00:40]} Qe7 {[%emt 0:01:39]} 46. Qc8 {[%emt 0:01:45][%csl Ga8][%cal Rc8g8]} Kg6 {[%emt 0:00:07]} 47. Rb8 {[%emt 0:01:15]} d5 {[%emt 0:02:57]} 48. Rxb7 {[%emt 0:00:11]} Qb4 {[%emt 0:00:24]} 49. Qg8+ {[%emt 0:00:30] Weighted Error Value: White=0.07 (flawless) /Black=0.40} 1-0

[Event "European Women-ch 2023"]
[Site "Petrovac"]
[Date "2023.03.25"]
[Round "7.11"]
[White "Walter, Ema"]
[Black "Pavlidou, Ekaterini"]
[Result "1/2-1/2"]
[Annotator "TA"]
[ECO "B31"]
[WhiteElo "2048"]
[BlackElo "2178"]
[PlyCount "163"]
[EventDate "2023.03.15"]
[EventType "swiss"]
[EventCountry "MNE"]
[SourceTitle "playchess.com"]
[Source "ChessBase"]
[SourceQuality "1"]
[TimeControl "40/5400+30:1800+30"]

{[%evp 9,163,21,28,13,41,16,15,21,34,0,6,0,0,-22,-8,-27,-27,-7,-4,-2,14,14,56,9,0,-10,-11,-16,-6,-24,0,0,0,0,35,49,41,14,42,6,24,-26,-26,-38,-32,-27,-39,-26,-13,-135,-79,-97,-62,-416,-419,-1373,-2526,-1100,-290,-290,-290,-285,-266,-325,-329,-332,-335,-316,-323,-306,-306,-524,-377,-366,-369,-285,-253,-412,-127,-110,-36,-34,-19,-122,-206,-721,-696,-585,-582,-405,-354,-550,-481,-468,-260,-264,-260,-240,-251,-221,-235,-197,0,-432,-377,-915,-881,-29964,-29946,-1614,-730,-773,-1,-1,-1,-1,-1,-1,-1,-1,-1,-1,-1,-1,-1,-1,8,8,8,-1,-1,-1,-1,-1,-1,-1,-1,-1,0,-1,-1,-1,-1,-1,-1,-1,-1,-1,-1,-1,-1,-1,-1,-1,0,-2]} 1. e4 {[%emt 0:00:03]} c5 {[%emt 0:00:32]} 2. Nf3 {[%emt 0:00:05]} Nc6 {[%emt 0:00:12]} 3. Bb5 {[%emt 0:00:04]} g6 {[%emt 0:00:26]} 4. O-O {[%emt 0:00:05]} Bg7 {[%emt 0:00:17]} 5. Re1 {[%emt 0:00:05]} Nd4 {[%emt 0:03:59]} 6. Bf1 {[%emt 0:03:49] B31: Sicilian: 2...Nc6 3 Bb5 g6.} d6 {[%emt 0:03:15]} 7. c3 {[%emt 0:00:41]} Nxf3+ {[%emt 0:00:31]} 8. Qxf3 {[%emt 0:00:06]} e6 {[%emt 0:02:45]} 9. Na3 {[%emt 0:01:11][%cal Od2d4]} Ne7 {[%emt 0:00:57]} 10. Nc2 {[%emt 0:01:47]} O-O {[%emt 0:08:20]} 11. d3 {[%emt 0:03:29]} Nc6 {[%emt 0:02:08]} 12. Be3 {[%emt 0:03:03]} e5 {[%emt 0:05:03]} 13. Qd1 {[%emt 0:11:20]} f5 {[%emt 0:03:22]} 14. f3 {[%emt 0:00:52] [#]} f4 $146 {[%emt 0:01:32]} ({Predecessor:} 14... Qf6 15. b4 cxb4 16. Nxb4 Nxb4 17. Qb3+ Kh8 18. Qxb4 f4 19. Bf2 g5 20. d4 b6 {½-½ Orlov,A (2521)-Ikonnikov,V (2578) NED-chT 0809 2008 (2.1)}) 15. Bf2 {[%emt 0:00:31]} Qf6 {[%emt 0:01:19]} 16. Qe2 {[%emt 0:20:13]} (16. d4 $14) 16... g5 $11 {[%emt 0:03:52][%cal Bg6g5,Bg5g4,Bg4g3,Bg3h2][%mdl 32]} 17. Rad1 {[%emt 0:07:37]} Qg6 {[%emt 0:01:34]} 18. d4 {[%emt 0:09:45]} cxd4 {[%emt 0:00:33]} 19. cxd4 {[%emt 0:00:32]} g4 {[%emt 0:15:01] ...g3 is the strong threat.} 20. Kh1 {[%emt 0:00:34]} g3 {[%emt 0:01:51]} 21. Bg1 {[%emt 0:00:05]} gxh2 {[%emt 0:00:45]} 22. Bf2 {[%emt 0:00:11]} Kh8 {[%emt 0:13:28]} 23. Qb5 {[%emt 0:07:49]} Bf6 {[%emt 0:00:00]} 24. dxe5 {[%emt 0:07:54]} (24. Re2 $5) 24... Bxe5 {[%emt 0:00:00]} 25. Nb4 {[%emt 0:05:26]} (25. Kxh2 Rg8 26. Rd3 (26. Kg1 $2 Bh3 $19) 26... a6 $19) ({White should try} 25. Re2) 25... Rg8 $1 {[%emt 0:03:56][%cal Oc8h3] Threatens to win with ...Bh3!} 26. Re2 $1 {[%emt 0:06:41] [#]} (26. Kxh2 $2 Bg4 27. Rd3 (27. fxg4 f3+ 28. g3 Qxg4 $19) (27. Qxb7 $2 Qh5+ 28. Kg1 Bxf3 $19) (27. Nxc6 $2 bxc6 $19) 27... Qh5+ 28. Kg1 Bxf3 29. Rxf3 Nd4 $19) (26. Nxc6 $2 Bh3 $19) 26... Bh3 $1 {[%emt 0:05:30][%cal Rh3g2][%mdl 64] Back Rank, Promotion} 27. Be1 {[%emt 0:01:50][%cal Ob4c6]} (27. gxh3 $2 Qg1+ 28. Bxg1 hxg1=Q#) 27... Nd4 {[%emt 0:02:01]} 28. Rxd4 {[%emt 0:00:04]} Bxd4 {[%emt 0:00:05]} 29. Nd5 {[%emt 0:01:03] [#]} (29. Qxb7 $1 $11 Rac8 30. Qd5) 29... Qg5 $1 {[%emt 0:02:46]} 30. Qxb7 $17 {[%emt 0:05:31]} Rae8 {[%emt 0:03:49] Prevents Qe7} 31. Bc3 $2 {[%emt 0:01:02][%mdl 8192]} (31. Nb4 $15) 31... Bxc3 $19 {[%emt 0:00:15]} 32. Nxc3 {[%emt 0:01:06] [#]} (32. bxc3 $142 Rb8 33. Qe7) 32... Qc5 $1 {[%emt 0:05:33][%csl Gh2][%cal Rc5g1]} 33. Kxh2 {[%emt 0:00:05]} Be6 $2 {[%emt 0:00:31]} (33... Re6 {[%cal Oh3g2] ( -> ...Bxg2!)} 34. Qf7 Bxg2 35. Qxg8+ {[%mdl 64] Remove Defender} Kxg8 36. Bxg2 Rh6+ 37. Bh3 Qh5) 34. Qb5 {[%emt 0:01:15] [#]} Qxb5 $1 {[%emt 0:01:54]} 35. Nxb5 {[%emt 0:00:02]} Bc4 {[%emt 0:00:13]} ({Stronger than} 35... Bxa2 36. Nxd6 Re5 37. Rd2 $17) 36. Re1 {[%emt 0:00:03] [#]} Bxf1 {[%emt 0:00:12]} ({And not} 36... Bxa2 37. Ra1 Be6 38. b4 $15) 37. Rxf1 {[%emt 0:00:01][%mdl 4096] Endgame KRR-KRN} Rb8 {[%emt 0:00:11]} 38. a4 {[%emt 0:01:56]} a6 {[%emt 0:00:05]} 39. Nxd6 {[%emt 0:00:05]} Rxb2 {[%emt 0:00:05]} 40. Nf7+ {[%emt 0:00:00]} Kg7 {[%emt 0:00:00]} 41. Ne5 {[%emt 0:08:05]} Kf6 {[%emt 0:00:23][%csl LRe5,LRg2]} 42. Ng4+ {[%emt 0:00:23]} Ke7 {[%emt 0:00:57]} 43. Rf2 $2 {[%emt 0:03:20]} (43. Kh3) 43... Rb1 $2 {[%emt 0:02:25]} (43... Rxf2 $19 {is more deadly.} 44. Nxf2 a5) 44. Rc2 $17 {[%emt 0:03:14]} h5 {[%emt 0:05:10]} (44... Ra1 $17 45. Rc7+ Kd6 46. Rxh7 Rxa4) 45. Nh6 $15 {[%emt 0:01:13]} Rd8 {[%emt 0:04:00]} 46. g3 {[%emt 0:07:25]} (46. Nf5+ $11 Kd7 47. Nd4) 46... Rdd1 {[%emt 0:03:51]} (46... Rd3 $17 47. Nf5+ Kd7) 47. gxf4 $2 {[%emt 0:01:39]} (47. Nf5+ Kf6 48. gxf4) 47... Rh1+ $19 {[%emt 0:00:16]} 48. Kg3 {[%emt 0:00:42]} Rbg1+ {[%emt 0:00:13]} 49. Kf2 {[%emt 0:00:03]} Rh2+ {[%emt 0:03:14][%mdl 64] Skewer} 50. Kxg1 {[%emt 0:00:05]} Rxc2 {[%emt 0:00:04] KR-KN} 51. Nf5+ {[%emt 0:00:32]} Kf6 {[%emt 0:01:05]} (51... Kf7 $142 {...Ra2 would be deadly.} 52. Kf1 Ra2 53. Nd6+ Kf6 54. Ne8+ Ke7) 52. Ne3 {[%emt 0:01:19]} Ra2 {[%emt 0:00:49]} 53. Nd5+ {[%emt 0:00:05]} Kg7 {[%emt 0:09:58]} 54. Nb6 {[%emt 0:02:45]} h4 {[%emt 0:04:18]} 55. f5 {[%emt 0:02:21]} Kh6 $2 {[%emt 0:06:08]} ({Black should play} 55... Rb2 $19 56. Nd5 Rd2) 56. Nd5 $2 {[%emt 0:02:52][%mdl 8192]} (56. e5 $11 {and White has nothing to worry.}) 56... Rxa4 {[%emt 0:02:14]} 57. Kg2 $2 {[%emt 0:00:08]} (57. e5 Ra5 58. Nb4) 57... Rd4 {[%emt 0:01:23] Strongly threatening ...a5.} 58. Nf4 {[%emt 0:04:40]} a5 {[%emt 0:01:08]} 59. f6 {[%emt 0:00:16]} Rd2+ {[%emt 0:01:56]} (59... a4 $142 60. Kh3 a3) 60. Kh3 {[%emt 0:00:06]} a4 $2 {[%emt 0:00:42]} ({Better is} 60... Rd8 $19 61. Ne6 Rc8) 61. e5 $1 $11 {[%emt 0:00:59][%cal Oe5e6] And now e6! would win. The position is equal.} a3 {[%emt 0:00:11]} 62. e6 $1 {[%emt 0:00:16][%cal Oe6e7] Intending e7! and mate.} a2 {[%emt 0:01:33]} 63. e7 $1 {[%emt 0:00:04]} a1=Q {[%emt 0:00:29]} 64. e8=Q {[%emt 0:00:02][%csl Gf4][%cal Re8h5] KQR-KQN. Some like it hot} Qh1+ {[%emt 0:00:41]} 65. Kg4 $132 {[%emt 0:00:06][%csl Gf4,Gg4][%cal Re8h5][%mdl 2048] White is not keeping still} Qg1+ {[%emt 0:00:09]} 66. Kf5 $1 {[%emt 0:00:38][%csl Gf4][%cal Re8h5]} Qc5+ {[%emt 0:00:40]} 67. Qe5 {[%emt 0:01:29]} Qc2+ {[%emt 0:00:27]} 68. Kg4 {[%emt 0:00:44][%csl Gf4,Gg4][%cal Re5h5]} Qc8+ {[%emt 0:00:41]} 69. Qf5 {[%emt 0:00:56]} ({Don't play} 69. Kxh4 Rh2+ 70. Kg3 Qc2 $14) (69. Ne6 {looks sharper.} Qc4+ 70. f4 Rg2+ 71. Kxh4 Rh2+ 72. Kg3) 69... Qxf5+ {[%emt 0:00:32]} 70. Kxf5 {[%emt 0:00:02] KR-KN} Rf2 {[%emt 0:00:34]} 71. Kg4 {[%emt 0:00:49]} (71. f7 $5 Kg7 $8 72. f8=R {[%mdl 64] Decoy} Kxf8 73. Ng6+ Kf7 74. Nxh4 $11) 71... Kh7 {[%emt 0:00:22]} 72. Nh3 {[%emt 0:00:34]} Rg2+ {[%emt 0:00:32]} 73. Kxh4 {[%emt 0:00:04]} Kg8 {[%emt 0:00:31]} 74. Nf4 {[%emt 0:00:25]} Rg1 {[%emt 0:00:08]} 75. Nh3 {[%emt 0:00:17]} Rg6 {[%emt 0:00:37]} 76. f4 {[%emt 0:00:16]} Kf7 {[%emt 0:00:23]} 77. Ng5+ {[%emt 0:01:05]} Kxf6 {[%emt 0:00:26]} 78. Kg4 {[%emt 0:00:05]} Rg8 {[%emt 0:00:08]} 79. Kf3 {[%emt 0:00:37]} Ra8 {[%emt 0:00:31]} 80. Ne4+ {[%emt 0:00:23]} Kf5 {[%emt 0:00:26]} 81. Ng3+ {[%emt 0:00:06]} Kf6 {[%emt 0:00:08]} 82. Ke4 {[%emt 0:01:04] Black had all chances to win. An exciting game.   Weighted Error Value: White=0.80/Black=0.51} 1/2-1/2

[Event "European Women-ch 2023"]
[Site "Petrovac"]
[Date "2023.03.25"]
[Round "7.12"]
[White "Beydullayeva, Govhar"]
[Black "Urh, Zala"]
[Result "1-0"]
[Annotator "TA"]
[ECO "D44"]
[WhiteElo "2388"]
[BlackElo "2294"]
[PlyCount "81"]
[EventDate "2023.03.15"]
[EventType "swiss"]
[EventCountry "MNE"]
[SourceTitle "playchess.com"]
[Source "ChessBase"]
[SourceQuality "1"]
[TimeControl "40/5400+30:1800+30"]

{[%evp 34,81,27,16,19,22,41,29,20,22,39,21,17,16,58,35,21,18,23,18,44,0,0,0,0,0,0,0,0,0,237,248,623,591,561,558,592,633,621,559,621,610,927,373,1448,1205,12841,12841,29998,29999]} 1. d4 {[%emt 0:00:02]} d5 {[%emt 0:00:17]} 2. c4 {[%emt 0:00:07]} c6 {[%emt 0:00:34]} 3. Nc3 {[%emt 0:00:24]} Nf6 {[%emt 0:00:29]} 4. Nf3 {[%emt 0:00:47]} e6 {[%emt 0:00:55]} 5. Bg5 {[%emt 0:11:27]} dxc4 {[%emt 0:01:00]} 6. e4 {[%emt 0:00:09][%cal Be2e4,Be4e5][%mdl 32]} b5 {[%emt 0:00:26]} 7. e5 {[%emt 0:00:04]} h6 {[%emt 0:00:10]} 8. Bh4 {[%emt 0:00:13]} g5 {[%emt 0:00:12]} 9. Nxg5 {[%emt 0:00:06]} hxg5 {[%emt 0:00:06]} 10. Bxg5 {[%emt 0:00:02]} Nbd7 {[%emt 0:00:36]} 11. g3 {[%emt 0:00:13]} Bb7 {[%emt 0:01:28]} 12. Bg2 {[%emt 0:00:12]} Qb6 {[%emt 0:00:11]} 13. exf6 {[%emt 0:00:08]} O-O-O {[%emt 0:00:27]} 14. O-O {[%emt 0:04:11]} c5 {[%emt 0:00:48]} 15. d5 {[%emt 0:02:26]} b4 {[%emt 0:00:39]} 16. Na4 {[%emt 0:01:55]} Qa6 {[%emt 0:00:36]} 17. a3 {[%emt 0:04:08]} Bxd5 {[%emt 0:01:02]} 18. Bxd5 {[%emt 0:04:45]} Ne5 $1 {[%emt 0:00:32] [#] D44: Semi-Slav: Botvinnik System.} 19. axb4 $1 {[%emt 0:04:10]} Rxd5 {[%emt 0:00:19]} 20. Qe2 {[%emt 0:00:49] Nc3 would be deadly. Dancing on a razor blade.} ({Worse is} 20. Nxc5 Qc6 21. Ra6 Qa8 $17) 20... cxb4 {[%emt 0:00:31] [#] White has an edge.} 21. Nc3 $1 {[%emt 0:17:09][%mdl 64] Discovered Attack} Qd6 {[%emt 0:00:50] 21...Ra5 is vanishing.} 22. Nxd5 {[%emt 0:12:58]} Qxd5 {[%emt 0:00:19]} 23. f3 $1 {[%emt 0:00:10]} (23. Rxa7 $2 Nf3+ $19) 23... Nd3 {[%emt 0:00:48]} 24. Be3 {[%emt 0:01:46]} Bc5 {[%emt 0:01:18]} 25. Bxc5 {[%emt 0:02:16]} Qxc5+ {[%emt 0:00:23]} 26. Kh1 {[%emt 0:02:06][%cal Ob2b3] Hoping for b3!} Rd8 {[%emt 0:01:04][%cal Bh8d8,Bd8d5,Bd5e5][%mdl 32]} 27. Ra4 {[%emt 0:09:04]} Rd5 {[%emt 0:01:28]} 28. Rfa1 {[%emt 0:04:54]} Re5 {[%emt 0:04:39]} 29. Qd2 {[%emt 0:02:10]} Rd5 $1 {[%emt 0:01:42] ( -> ...Nf2+)} 30. Qe2 {[%emt 0:01:05]} (30. Rxa7 $2 Nf2+ $19) 30... Re5 {[%emt 0:00:09]} 31. Qc2 {[%emt 0:05:27] [#]} Qc6 $146 {[%emt 1:00:00]} (31... Qd5 $11 {and Black is okay.}) ({Predecessor:} 31... Ne1 32. Qh7 Nxf3 33. Qg8+ Kb7 34. Rxa7+ Kc6 35. Qa8+ Kd6 36. Qd8+ Kc6 37. Qd7+ {1-0 Ibrayev,N (2388)-Aditya,M (2438) Titled Tuesday intern op 08th June blitz 2021 (10)}) 32. Rxa7 $18 {[%emt 0:01:23] Black must now prevent Ra8+.} Qxf3+ {[%emt 0:03:12]} (32... b3 33. Qd2 Qxf3+ 34. Qg2 Re1+ 35. Rxe1 Qxg2+ 36. Kxg2 Nxe1+ 37. Kf1 c3) 33. Qg2 {[%emt 0:00:04]} Qxg2+ {[%emt 0:01:26]} 34. Kxg2 {[%emt 0:00:00][%mdl 4096] Endgame KRR-KRN} Re2+ {[%emt 0:01:07]} 35. Kh3 {[%emt 0:03:48]} Ne5 {[%emt 0:01:04]} 36. R1a5 {[%emt 0:03:28]} b3 {[%emt 0:10:10]} 37. Rc5+ {[%emt 0:00:56]} Kd8 {[%emt 0:02:50]} 38. Raa5 {[%emt 0:01:00]} (38. Re7 $142 {Strongly threatening Ra5.} Rf2 39. Rxe5 Rxf6 40. Ra7) 38... Rxb2 $2 {[%emt 0:03:03]} (38... Nf3 39. Ra7 Rxb2) 39. Rxe5 {[%emt 0:00:04]} c3 {[%emt 0:00:01]} 40. Ra7 {[%emt 0:00:00] White threatens Rg5 and mate.} c2 {[%emt 0:00:00]} 41. Rh5 {[%emt 0:02:18] Weighted Error Value: White=0.22 (precise) /Black=0.80} 1-0

[Event "European Women-ch 2023"]
[Site "Petrovac"]
[Date "2023.03.25"]
[Round "7.12"]
[White "Toncheva, Nadya"]
[Black "Garcia Martin, Marta"]
[Result "1/2-1/2"]
[Annotator "TA"]
[ECO "C72"]
[WhiteElo "2192"]
[BlackElo "2306"]
[PlyCount "129"]
[EventDate "2023.03.15"]
[EventType "swiss"]
[EventCountry "MNE"]
[SourceTitle "playchess.com"]
[Source "ChessBase"]
[SourceQuality "1"]
[TimeControl "40/5400+30:1800+30"]

{[%evp 12,129,29,27,25,27,20,16,27,18,23,0,0,-34,-36,-54,0,0,0,0,0,0,0,-2,0,-50,-55,-60,-39,-61,-76,-112,-81,-96,-97,-97,-62,-82,-42,-50,-54,-70,-32,-33,-10,-50,0,-26,-31,-42,-48,-42,-45,-37,-44,-40,-28,-47,-33,-39,0,0,0,0,0,0,0,-22,0,0,0,0,0,0,0,0,0,0,0,0,0,0,0,0,0,0,0,0,0,0,0,-13,-13,-72,-72,-72,0,0,0,0,0,0,0,0,0,0,0,0,0,0,0,0,0,0,0,0,0,0,0,0]} 1. e4 {[%emt 0:00:04]} e5 {[%emt 0:02:09]} 2. Nf3 {[%emt 0:00:04]} Nc6 {[%emt 0:00:08]} 3. Bb5 {[%emt 0:00:06]} a6 {[%emt 0:00:07]} 4. Ba4 {[%emt 0:00:03]} d6 {[%emt 0:00:12]} 5. O-O {[%emt 0:00:24]} Bd7 {[%emt 0:00:10]} 6. c4 {[%emt 0:01:46]} Nf6 {[%emt 0:00:15]} 7. Nc3 {[%emt 0:01:14]} Bg4 {[%emt 0:00:44] C72: Ruy Lopez: Deferred Steinitz: 5 0-0.} 8. h3 {[%emt 0:04:27]} Bxf3 {[%emt 0:00:07]} 9. Qxf3 {[%emt 0:00:06][%cal Od2d4]} Nd7 {[%emt 0:00:10]} 10. d3 {[%emt 0:03:52]} Nd4 {[%emt 0:00:16] [#]} 11. Qg4 $146 {[%emt 0:03:35]} ({Predecessor:} 11. Qg3 c6 12. Be3 h5 13. f4 b5 14. Bb3 b4 15. Bxd4 exd4 16. Ne2 Qb6 17. Qf2 {1-0 Grigoriants,S (2546)-Barp,A (2388) Titled Tuesday intern op 15th Feb Late blitz 2022 (3)}) 11... c6 {[%emt 0:00:48]} 12. f4 {[%emt 0:07:16]} g6 {[%emt 0:37:38]} 13. fxe5 {[%emt 0:07:14]} Nxe5 {[%emt 0:08:12]} ({Better is} 13... dxe5 $15 14. Rb1 Nc5) 14. Qg3 {[%emt 0:00:46] [#] Black must now prevent Be3.} Bg7 {[%emt 0:02:49]} 15. Be3 {[%emt 0:07:03]} Ne6 {[%emt 0:01:40]} 16. Bc2 {[%emt 0:01:46]} b5 {[%emt 0:03:18]} 17. cxb5 {[%emt 0:11:31]} axb5 {[%emt 0:00:07]} 18. a3 {[%emt 0:03:21]} (18. Rad1 $11) 18... O-O $15 {[%emt 0:00:57]} 19. Rad1 {[%emt 0:00:46]} Rb8 {[%emt 0:07:05]} (19... Qb8 $5 {[%cal Rb5b4]}) 20. Ne2 {[%emt 0:05:08]} b4 {[%emt 0:02:11]} 21. d4 {[%emt 0:04:44]} Nc4 {[%emt 0:02:54][%csl LRa3,LRb2]} 22. Bc1 {[%emt 0:00:18]} bxa3 {[%emt 0:09:35]} 23. bxa3 {[%emt 0:00:06]} Qb6 {[%emt 0:00:17][%cal Rg7d4] Inhibits Bb3.} 24. Kh1 {[%emt 0:04:08]} d5 {[%emt 0:01:20]} ({Much less strong is} 24... Bxd4 25. Nxd4 Nxd4 26. Qc3 Nxc2 27. Bh6 $16) 25. exd5 {[%emt 0:01:53]} cxd5 {[%emt 0:00:05]} (25... Nxd4 $2 26. Nxd4 Bxd4 27. dxc6 $18) 26. Nf4 {[%emt 0:01:39]} Nxd4 {[%emt 0:06:09]} (26... Bxd4 $2 27. Nxd5 Qd6 28. Qxd6 Nxd6 29. Ne7+ Kh8 30. Nc6 $18) 27. Nxd5 {[%emt 0:01:27]} Qc5 {[%emt 0:00:06]} (27... Qe6 $5 {[%cal Re6d5]} 28. Nf4 Qc6 $15) 28. Be4 {[%emt 0:03:39] Threatens to win with Qh4. This pair of bishops is nice.} f5 {[%emt 0:03:08]} (28... Rbe8 $15 29. Qd3 f5) 29. Bf3 {[%emt 0:00:11]} (29. Ne7+ $5 Qxe7 30. Bd5+ Kh8 31. Bxc4 $11) 29... Rb3 {[%emt 0:00:51][%cal Ob3f3] Hoping for ...Rxf3!} ({Don't take} 29... Nxa3 30. Qh4 Rbe8 31. Bxa3 Qxa3 32. Rxd4 Bxd4 33. Qxd4 $16) 30. Qc7 {[%emt 0:03:18]} Qxc7 {[%emt 0:00:51]} 31. Nxc7 {[%emt 0:00:04] And now Bd5+ would win.} Nxf3 {[%emt 0:00:07]} (31... Nxa3 $2 32. Bd5+ Kh8 33. Bxb3 $18) 32. Rxf3 {[%emt 0:00:04]} Rxf3 {[%emt 0:00:13]} 33. gxf3 {[%emt 0:00:04]} Rc8 {[%emt 0:10:45]} 34. Nd5 {[%emt 0:01:17] Ne7+ would be deadly.} Kf7 {[%emt 0:00:19] Prevents Ne7.} 35. a4 {[%emt 0:04:15]} Ra8 {[%emt 0:00:52]} 36. Nc7 $1 {[%emt 0:00:07]} Rc8 {[%emt 0:01:15]} 37. Rd7+ {[%emt 0:04:53]} Kg8 {[%emt 0:00:07] aiming for ...Nb6.} 38. Ne6 {[%emt 0:01:41]} Bf6 {[%emt 0:00:34]} 39. Rc7 {[%emt 0:01:35]} Re8 {[%emt 0:00:18]} 40. Rxc4 {[%emt 0:00:00]} Rxe6 $11 {[%emt 0:00:00][%mdl 4096] Endgame KRB-KRB} 41. a5 {[%emt 0:04:04]} Re1+ {[%emt 0:06:09]} 42. Kg2 {[%emt 0:00:44]} Re2+ {[%emt 0:00:02]} 43. Kg3 {[%emt 0:03:05]} Ra2 {[%emt 0:00:12] Wards off Ra4} 44. Rc6 {[%emt 0:01:39]} Kf7 {[%emt 0:04:22]} 45. a6 {[%emt 0:02:09]} Bd4 {[%emt 0:06:14] Inhibits Be3.} 46. Bg5 {[%emt 0:08:43]} Bg1 {[%emt 0:06:10] Strongly threatening ...Bh2+.} 47. f4 {[%emt 0:04:00]} Ra3+ {[%emt 0:02:57]} 48. Kg2 {[%emt 0:00:07]} Be3 {[%emt 0:00:08]} 49. h4 {[%emt 0:04:30][%cal Bh3h4,Bh4h5][%mdl 32]} Bd4 {[%emt 0:01:26]} 50. Bd8 {[%emt 0:01:43]} Ke8 {[%emt 0:00:17]} 51. Bc7 {[%emt 0:06:27]} Kd7 {[%emt 0:00:32][%mdl 64] [#] Deflection} 52. Rd6+ {[%emt 0:00:06]} (52. Rc4 $11) 52... Kxc7 $17 {[%emt 0:00:05]} 53. Rxd4 {[%emt 0:00:03][%cal Oh4h5]} Rxa6 {[%emt 0:00:12] KR-KR} (53... h5 $17) 54. h5 $1 $11 {[%emt 0:00:27] The position is equal.} Rd6 {[%emt 0:04:51]} 55. Ra4 {[%emt 0:00:05]} Kc6 {[%emt 0:02:16]} 56. Kg3 {[%emt 0:02:15]} Rd1 {[%emt 0:01:27]} 57. Ra7 {[%emt 0:01:12]} Rg1+ {[%emt 0:00:52]} 58. Kf3 {[%emt 0:00:47]} Rf1+ {[%emt 0:01:26]} 59. Kg3 {[%emt 0:00:12]} Rh1 {[%emt 0:00:28]} 60. Rxh7 {[%emt 0:00:32]} Rxh5 {[%emt 0:00:16]} 61. Rxh5 {[%emt 0:00:55]} gxh5 {[%emt 0:00:03]} 62. Kh4 {[%emt 0:00:10]} Kd5 {[%emt 0:01:42]} 63. Kxh5 {[%emt 0:00:06]} Ke6 {[%emt 0:00:32]} 64. Kg6 {[%emt 0:00:06]} (64. Kg5 $5) 64... Ke7 {[%emt 0:00:12]} 65. Kxf5 {[%emt 0:00:06] Weighted Error Value: White=0.10 (very precise) /Black=0.09 (flawless)} 1/2-1/2